bitfinex-derivatives/quotes_SOLF0:USTF0_20251023
["timestamp","ask_amount","ask_price","bid_price","bid_amount"]
[1761204524455,1.71,186.74,186.7,7.65708049]
[1761204524654,1.71,186.74,186.71,7.65708049]
[1761204524852,1.71,186.74,186.72,4.88708049]
[1761204525056,1.71,186.74,186.73,4.88708049]
[1761204527056,3.69999266,186.75,186.73,7.65708049]
[1761204527254,3.69999266,186.75,186.74,4.88708049]
[1761204528057,3.69999266,186.75,186.66,2.77]
[1761204528253,3.69999266,186.75,186.68,2.77]
[1761204528454,3.69999266,186.75,186.7,2.77]
[1761204528655,3.69999266,186.75,186.72,2.77]
[1761204528957,3.69999266,186.75,186.73,4.88418933]
[1761204529146,3.69999266,186.75,186.72,2.77]
[1761204529347,3.69999266,186.75,186.73,4.88360925]
[1761204529547,3.69999266,186.75,186.72,2.77]
[1761204529743,3.69999266,186.75,186.73,4.88327121]
[1761204530046,3.69999266,186.75,186.74,4.88327121]
[1761204531454,3.69999266,186.75,186.72,2.77]
[1761204531651,3.69999266,186.75,186.73,4.88182645]
[1761204531855,3.69999266,186.75,186.72,2.77]
[1761204532157,3.69999266,186.75,186.73,4.88183389]
[1761204532356,3.69999266,186.75,186.72,2.77]
[1761204532558,3.69999266,186.75,186.73,4.88156045]
[1761204532758,3.69999266,186.75,186.72,2.77]
[1761204533055,3.69999266,186.75,186.73,4.88203958]
[1761204533256,3.69999266,186.75,186.72,2.77]
[1761204533457,3.69999266,186.75,186.73,4.88193065]
[1761204533645,3.69999266,186.75,186.72,2.77]
[1761204533850,3.69999266,186.75,186.73,4.88210066]
[1761204534147,3.69999266,186.75,186.72,2.77]
[1761204534347,3.69999266,186.75,186.73,4.88229051]
[1761204534556,3.69999266,186.75,186.71,2.77]
[1761204534756,3.69999266,186.75,186.72,7.65229051]
[1761204534957,3.69999266,186.75,186.73,4.88229051]
[1761204535155,3.69999266,186.75,186.72,2.77]
[1761204535355,3.69999266,186.75,186.73,4.88253328]
[1761204535551,3.69999266,186.75,186.72,2.77]
[1761204535860,3.69999266,186.75,186.73,4.88253147]
[1761204536060,3.69999266,186.75,186.72,2.77]
[1761204536257,3.69999266,186.75,186.73,4.88281742]
[1761204536458,3.69999266,186.75,186.72,2.77]
[1761204536658,3.69999266,186.75,186.73,4.88281464]
[1761204536855,1.98999266,186.75,186.72,2.77]
[1761204537054,1.98999266,186.75,186.73,7.65281742]
[1761204537359,1.71,186.77,186.73,2.77]
[1761204538059,1.71,186.81,186.75,2.77]
[1761204538256,44.72,186.8,186.75,2.77]
[1761204538456,3.51,186.83,186.77,2.92]
[1761204538656,3.51,186.83,186.79,2.92]
[1761204538956,3.51,186.83,186.81,2.92]
[1761204539158,3.51,186.83,186.82,7.79733809]
[1761204540554,44.72,186.9,186.83,2.92]
[1761204540762,44.72,186.9,186.85,2.92]
[1761204540957,44.72,186.9,186.87,2.92]
[1761204541155,1.98999266,186.94,186.87,2.92]
[1761204541351,3.69999266,186.94,186.87,2.92]
[1761204541553,1.71,186.93,186.88,7.78262022]
[1761204541754,1.71,186.93,186.89,2.92]
[1761204542153,1.98999266,186.99,186.91,2.92]
[1761204542462,1.71,187.01,186.93,2.92]
[1761204543255,1.71,187.01,186.95,2.92]
[1761204544955,18.32,187.02,186.95,2.92]
[1761204545664,4.84,187.03,186.95,2.92]
[1761204545964,1.71,187.02,186.95,2.92]
[1761204546157,3.69999266,187.02,186.95,2.92]
[1761204546364,1.71,187.02,186.95,2.92]
[1761204547661,4.84,187.03,186.95,2.92]
[1761204548764,6.55,187.03,186.95,2.92]
[1761204549960,4.84,187.03,186.95,2.92]
[1761204550264,4.84,187.03,186.97,2.92]
[1761204550660,4.84,187.03,186.98,4.79614623]
[1761204550963,4.84,187.03,186.99,2.92]
[1761204553155,4.84,187.03,187.0,2.92]
[1761204553768,44.68,187.13,187.02,2.92]
[1761204553769,1.71,187.12,187.02,2.92]
[1761204555268,2.77,187.17,187.06,2.92]
[1761204555565,2.77,187.17,187.09,2.92]
[1761204556360,2.77,187.16,187.09,2.92]
[1761204556563,2.77,187.13,187.05,2.92]
[1761204558663,1.26685099,187.11,187.05,2.92]
[1761204559963,1.26685099,187.07,187.05,2.92]
[1761204560157,1.26685099,187.07,187.0,2.92]
[1761204560668,1.26685099,187.05,187.0,2.92]
[1761204561467,1.26685099,187.03,187.0,2.92]
[1761204561770,4.03685099,187.01,186.96,2.92]
[1761204562069,1.26685099,186.99,186.96,2.92]
[1761204563366,2.77,187.07,186.97,2.92]
[1761204563668,1.26685099,187.01,186.97,2.92]
[1761204563869,1.26685099,186.99,186.97,2.92]
[1761204564167,1.26685099,186.99,186.92,2.92]
[1761204564370,1.26685099,187.01,186.94,2.64]
[1761204564871,2.72,187.07,186.96,2.64]
[1761204564872,1.26685099,187.04,186.96,2.64]
[1761204565871,1.26685099,187.05,186.96,2.64]
[1761204566066,1.26685099,187.05,186.98,2.64]
[1761204567770,2.72,187.07,186.98,2.64]
[1761204567971,1.26685099,187.05,186.98,2.64]
[1761204569572,1.26685099,187.11,187.02,2.83]
[1761204570466,1.26685099,187.11,187.03,1.26685099]
[1761204570671,1.26685099,187.11,187.04,2.83]
[1761204571375,2.78,187.1,187.04,2.83]
[1761204571575,4.04685099,187.1,187.04,2.83]
[1761204573181,16.09,187.2,187.1,2.83]
[1761204573182,2.78,187.2,187.1,2.83]
[1761204573470,3.66,187.21,187.16,2.83]
[1761204573671,3.66,187.21,187.18,2.83]
[1761204574473,3.66,187.21,187.2,2.83]
[1761204574879,2.78,187.28,187.16,2.83]
[1761204575173,2.78,187.28,187.17,7.59185303]
[1761204575378,2.78,187.28,187.17,2.83]
[1761204577271,2.78,187.26,187.17,2.83]
[1761204578190,2.78,187.26,187.18,4.76946915]
[1761204578373,2.78,187.26,187.17,2.83]
[1761204578569,2.78,187.26,187.18,4.76780571]
[1761204578778,2.78,187.26,187.17,2.83]
[1761204579674,2.78,187.26,187.18,7.60183298]
[1761204579873,2.78,187.26,187.19,7.60183298]
[1761204580067,2.78,187.26,187.2,4.77183298]
[1761204580274,2.78,187.26,187.19,2.83]
[1761204580474,2.78,187.26,187.2,4.77469522]
[1761204580671,2.78,187.26,187.19,2.83]
[1761204581078,2.78,187.26,187.11,2.83]
[1761204581277,3.2205158,187.24,187.13,2.83]
[1761204581581,3.2205158,187.24,187.14,7.6135373]
[1761204581582,2.78,187.23,187.14,7.6135373]
[1761204581769,5.12,187.27,187.16,2.83]
[1761204581967,5.12,187.27,187.1,19.3105158]
[1761204581968,5.12,187.27,187.18,2.83]
[1761204582175,5.12,187.27,187.2,2.83]
[1761204582474,5.12,187.27,187.22,2.83]
[1761204582682,5.12,187.27,187.23,7.61461829]
[1761204582868,2.78,187.26,187.2,2.83]
[1761204583068,2.78,187.26,187.21,4.78600237]
[1761204583274,2.78,187.26,187.22,4.78600237]
[1761204583578,2.78,187.26,187.23,4.78600237]
[1761204583779,2.78,187.23,187.16,2.83]
[1761204583981,2.78,187.23,187.17,4.7975349]
[1761204584186,2.78,187.23,187.18,4.7975349]
[1761204584381,2.78,187.23,187.19,4.7975349]
[1761204584578,2.78,187.23,187.12,2.83]
[1761204584779,2.78,187.23,187.13,4.80216155]
[1761204584976,2.78,187.23,187.14,4.80216155]
[1761204585176,2.78,187.23,187.15,4.80216155]
[1761204585380,2.78,187.23,187.16,4.80216155]
[1761204585576,2.78,187.23,187.17,4.80216155]
[1761204585782,2.78,187.23,187.18,4.80216155]
[1761204585981,2.78,187.23,187.19,4.80216155]
[1761204586179,2.78,187.23,187.12,2.83]
[1761204586376,2.78,187.23,187.13,7.6359142]
[1761204586586,2.78,187.23,187.14,4.8059142]
[1761204586785,2.78,187.23,187.15,4.8059142]
[1761204586986,2.78,187.23,187.16,4.8059142]
[1761204587187,2.78,187.23,187.17,4.8059142]
[1761204587389,2.78,187.23,187.18,4.8059142]
[1761204587687,2.78,187.23,187.13,2.83]
[1761204587887,2.78,187.23,187.14,7.63852435]
[1761204588082,2.78,187.23,187.16,2.83]
[1761204588392,2.78,187.23,187.17,7.63852435]
[1761204588590,2.78,187.23,187.18,7.63852435]
[1761204588891,2.78,187.23,187.19,4.80852435]
[1761204589075,2.78,187.23,187.2,4.80852435]
[1761204589278,2.78,187.23,187.21,4.80852435]
[1761204589486,2.78,187.23,187.18,2.83]
[1761204589684,2.78,187.23,187.19,4.80802653]
[1761204589888,2.78,187.23,187.2,4.80802653]
[1761204590078,2.78,187.23,187.21,4.80802653]
[1761204590280,2.78,187.23,187.11,2.83]
[1761204590486,2.78,187.23,187.13,2.83]
[1761204590789,2.78,187.2,187.14,4.81004174]
[1761204590983,2.78,187.2,187.15,4.81004174]
[1761204591185,2.78,187.2,187.16,4.81004174]
[1761204591384,2.78,187.2,187.17,4.81004174]
[1761204591584,2.78,187.2,187.18,4.81004174]
[1761204591881,3.2205158,187.21,187.19,4.81004174]
[1761204592090,3.2205158,187.21,187.15,2.83]
[1761204592396,3.2205158,187.21,187.08,4.8093]
[1761204592397,2.78,187.23,187.17,2.83]
[1761204592581,2.78,187.23,187.18,7.64167282]
[1761204592782,2.78,187.23,187.19,4.81167282]
[1761204592988,2.78,187.23,187.2,4.81167282]
[1761204593198,2.78,187.23,187.18,2.83]
[1761204593395,2.78,187.23,187.19,4.81330043]
[1761204593596,2.78,187.23,187.2,4.81330043]
[1761204593783,2.78,187.23,187.21,4.81330043]
[1761204594094,2.78,187.23,187.18,2.83]
[1761204594393,2.78,187.23,187.19,4.81368257]
[1761204594590,2.78,187.23,187.2,4.81368257]
[1761204594892,2.78,187.23,187.18,2.83]
[1761204595095,2.78,187.23,187.19,4.81517593]
[1761204595292,2.78,187.23,187.2,4.81517593]
[1761204595590,2.78,187.23,187.18,2.83]
[1761204595790,2.78,187.23,187.19,4.81629788]
[1761204595991,2.78,187.23,187.2,4.81629788]
[1761204596181,2.78,187.23,187.1,4.8086]
[1761204596382,6.0005158,187.21,187.12,2.83]
[1761204596581,6.0005158,187.21,187.13,7.64629967]
[1761204596786,6.0005158,187.21,187.14,4.81629967]
[1761204596984,6.0005158,187.21,187.15,4.81629967]
[1761204597190,2.78,187.2,187.16,4.81629967]
[1761204597490,2.78,187.2,187.17,4.81629967]
[1761204597686,2.78,187.2,187.13,2.83]
[1761204597991,2.78,187.2,187.14,4.81955402]
[1761204598293,2.78,187.2,187.15,7.64955402]
[1761204598491,2.78,187.2,187.16,4.81955402]
[1761204598793,2.78,187.2,187.17,4.82009411]
[1761204598984,2.78,187.2,187.15,2.83]
[1761204599184,2.78,187.2,187.16,4.82003796]
[1761204599493,2.78,187.2,187.15,2.83]
[1761204599792,2.78,187.2,187.16,4.82107932]
[1761204600090,2.78,187.2,187.11,2.88]
[1761204600289,2.78,187.2,187.12,7.70108661]
[1761204600496,4.7,187.21,187.14,2.88]
[1761204600705,4.7,187.21,187.04,6.64307361]
[1761204600706,4.7,187.21,187.16,2.88]
[1761204600993,4.7,187.21,187.18,2.88]
[1761204601306,4.7,187.21,187.12,2.88]
[1761204601482,4.7,187.21,187.14,2.88]
[1761204601790,4.7,187.21,187.16,2.88]
[1761204601984,4.7,187.21,187.15,4.81955124]
[1761204601985,4.7,187.21,187.18,2.88]
[1761204602180,4.7,187.21,187.2,2.88]
[1761204602386,2.91,187.3,187.21,2.88]
[1761204602587,2.91,187.3,187.23,2.88]
[1761204602888,2.91,187.3,187.24,7.69955124]
[1761204603091,2.91,187.38,187.26,2.88]
[1761204603288,2.91,187.38,187.28,2.88]
[1761204603593,2.91,187.38,187.3,2.88]
[1761204603788,2.91,187.38,187.31,4.81955124]
[1761204603989,2.91,187.38,187.32,4.81955124]
[1761204604186,2.91,187.38,187.3,2.88]
[1761204604385,2.91,187.48,187.32,2.88]
[1761204604588,2.91,187.48,187.34,2.88]
[1761204604786,2.91,187.48,187.27,26.76]
[1761204604787,2.91,187.48,187.36,2.88]
[1761204604985,13.78,187.56,187.36,2.88]
[1761204604986,2.91,187.44,187.36,2.88]
[1761204605386,4.92,187.47,187.38,2.88]
[1761204605594,2.91,187.46,187.38,2.88]
[1761204605791,2.91,187.44,187.33,2.88]
[1761204605992,2.91,187.44,187.34,7.67529642]
[1761204606191,2.91,187.44,187.35,4.79529642]
[1761204606392,2.91,187.44,187.36,7.67107682]
[1761204606592,2.91,187.44,187.37,4.79107682]
[1761204606788,2.91,187.44,187.36,2.88]
[1761204608393,4.92,187.47,187.38,2.88]
[1761204608585,4.92,187.47,187.39,2.88]
[1761204608586,2.91,187.46,187.39,2.88]
[1761204608785,2.91,187.46,187.29,2.88]
[1761204608991,2.91,187.46,187.31,2.88]
[1761204609190,2.91,187.46,187.33,2.88]
[1761204609390,2.91,187.44,187.35,2.88]
[1761204609592,2.91,187.44,187.36,4.78841543]
[1761204609792,4.92,187.47,187.37,4.7871727]
[1761204609999,4.92,187.47,187.39,2.88]
[1761204610196,4.92,187.47,187.4,7.6671727]
[1761204610386,4.92,187.47,187.4,2.88]
[1761204610592,4.92,187.47,187.41,4.78258204]
[1761204610792,2.91,187.58,187.43,2.88]
[1761204610996,2.91,187.57,187.45,2.88]
[1761204611297,2.91,187.57,187.34,4.86942235]
[1761204611298,2.91,187.56,187.41,2.88]
[1761204611493,2.91,187.53,187.41,2.88]
[1761204611798,2.91,187.53,187.43,2.88]
[1761204611996,2.91,187.53,187.44,7.65867332]
[1761204612194,2.91,187.53,187.44,2.88]
[1761204612398,2.91,187.57,187.46,2.88]
[1761204612702,6.94,187.56,187.46,2.88]
[1761204612901,2.91,187.55,187.46,2.88]
[1761204613992,2.91,187.55,187.42,2.88]
[1761204614197,2.91,187.55,187.43,4.77377708]
[1761204614399,2.91,187.55,187.44,4.77377708]
[1761204614595,2.91,187.55,187.46,2.88]
[1761204616395,2.91,187.55,187.47,7.64630103]
[1761204616600,2.91,187.55,187.48,7.64630103]
[1761204616795,2.91,187.55,187.48,2.88]
[1761204617200,2.91,187.55,187.42,2.88]
[1761204617402,2.91,187.55,187.44,2.88]
[1761204617702,2.91,187.55,187.45,7.64657148]
[1761204617999,2.91,187.55,187.46,4.76657148]
[1761204619310,2.91,187.55,187.46,7.64657148]
[1761204619509,2.91,187.55,187.46,2.88]
[1761204621304,2.91,187.55,187.39,2.88]
[1761204621496,2.91,187.55,187.41,2.88]
[1761204621697,2.91,187.55,187.42,7.64036019]
[1761204621906,2.91,187.55,187.42,2.88]
[1761204623205,2.91,187.55,187.29,16.09]
[1761204623206,2.91,187.51,187.27,4.86942235]
[1761204623404,2.91,187.51,187.38,2.88]
[1761204623711,21.3770824,187.52,187.38,2.88]
[1761204623712,2.91,187.5,187.38,2.88]
[1761204624011,2.91,187.5,187.4,2.88]
[1761204624211,2.91,187.5,187.42,2.89]
[1761204625614,2.82,187.54,187.42,2.89]
[1761204625813,2.82,187.54,187.44,2.89]
[1761204626112,2.82,187.54,187.46,2.89]
[1761204626507,4.03,187.56,187.48,2.89]
[1761204626903,2.82,187.55,187.48,2.89]
[1761204627202,2.82,187.55,187.39,2.89]
[1761204627407,2.82,187.55,187.41,2.89]
[1761204627609,2.82,187.55,187.43,2.89]
[1761204627809,2.82,187.55,187.45,2.89]
[1761204628112,2.82,187.55,187.46,7.64739556]
[1761204628309,2.82,187.55,187.46,2.89]
[1761204628610,2.82,187.55,187.47,4.75521283]
[1761204628812,2.82,187.55,187.46,2.89]
[1761204629312,2.82,187.55,187.42,2.8]
[1761204629518,2.82,187.55,187.43,7.55721437]
[1761204629812,2.82,187.55,187.44,4.75721437]
[1761204630111,16.09,187.55,187.44,4.75721437]
[1761204630304,7.24,187.54,187.41,2.8]
[1761204630506,2.78,187.52,187.41,2.8]
[1761204630819,2.78,187.5,187.31,2.8]
[1761204631004,2.78,187.5,187.33,2.8]
[1761204631202,2.78,187.5,187.35,2.8]
[1761204631402,2.78,187.5,187.36,7.56340151]
[1761204631612,2.78,187.48,187.37,4.76340151]
[1761204632205,2.78,187.48,187.36,2.8]
[1761204632822,2.78,187.47,187.36,2.8]
[1761204633009,2.78,187.47,187.37,4.76832331]
[1761204633210,2.78,187.47,187.39,2.8]
[1761204633414,2.78,187.47,187.4,4.76832331]
[1761204633613,2.78,187.47,187.39,2.8]
[1761204633817,2.78,187.47,187.4,4.76814033]
[1761204634117,2.78,187.47,187.39,2.8]
[1761204634315,2.78,187.53,187.41,2.8]
[1761204634514,2.78,187.53,187.42,4.76892614]
[1761204634716,2.78,187.53,187.44,2.8]
[1761204635414,2.78,187.53,187.41,4.8009]
[1761204635415,2.78,187.53,187.46,2.8]
[1761204635613,2.78,187.53,187.47,4.76739995]
[1761204635813,2.78,187.53,187.46,2.8]
[1761204636820,4.46,187.54,187.46,2.8]
[1761204637619,2.78,187.53,187.39,2.8]
[1761204637828,4.46,187.54,187.41,2.8]
[1761204638024,4.46,187.54,187.43,2.8]
[1761204638224,4.46,187.54,187.45,2.8]
[1761204639416,4.46,187.54,187.46,4.77858556]
[1761204639620,4.46,187.54,187.45,2.8]
[1761204639814,4.46,187.54,187.46,4.77836299]
[1761204640014,4.46,187.54,187.45,2.8]
[1761204640324,4.46,187.54,187.46,4.77847427]
[1761204640518,4.46,187.54,187.45,2.8]
[1761204640722,7.24,187.54,187.45,2.8]
[1761204641324,7.24,187.54,187.46,4.78309539]
[1761204641521,7.24,187.54,187.47,4.78309539]
[1761204641722,7.24,187.54,187.45,2.8]
[1761204641922,7.24,187.54,187.46,4.78777058]
[1761204642219,7.24,187.54,187.45,2.8]
[1761204642220,2.78,187.53,187.45,2.8]
[1761204642529,2.78,187.53,187.46,4.79477733]
[1761204642723,2.78,187.53,187.47,4.79477733]
[1761204642928,2.78,187.53,187.42,2.8]
[1761204643121,2.78,187.53,187.44,2.8]
[1761204643426,2.78,187.53,187.45,4.79505601]
[1761204643623,2.78,187.53,187.46,4.79505601]
[1761204643829,2.78,187.53,187.44,2.8]
[1761204644121,2.78,187.53,187.45,4.8036831]
[1761204644428,2.78,187.53,187.46,4.8036831]
[1761204644627,2.78,187.53,187.47,4.8036831]
[1761204644829,2.78,187.53,187.48,4.8036831]
[1761204645123,2.78,187.53,187.44,2.8]
[1761204645124,2.78,187.52,187.39,2.8]
[1761204645426,2.78,187.52,187.41,4.86942235]
[1761204645730,2.78,187.52,187.42,2.8]
[1761204646314,2.78,187.52,187.44,2.8]
[1761204647122,2.78,187.52,187.4,4.86942235]
[1761204647328,2.78,187.52,187.41,7.66942235]
[1761204647529,2.78,187.52,187.42,7.66942235]
[1761204647726,2.78,187.52,187.44,2.8]
[1761204648229,2.78,187.52,187.44,7.66942235]
[1761204648727,2.78,187.52,187.45,4.86942235]
[1761204649024,4.46,187.54,187.47,2.8]
[1761204649220,4.46,187.54,187.49,2.8]
[1761204649426,4.46,187.54,187.51,2.8]
[1761204650829,4.46,187.54,187.52,2.8]
[1761204653237,4.46,187.54,187.53,2.8]
[1761204653629,4.46,187.54,187.51,7.66942235]
[1761204654033,4.46,187.54,187.52,2.8]
[1761204655928,1e-08,187.54,187.53,4.86942235]
[1761204656127,2.78,187.66,187.53,2.8]
[1761204656334,2.78,187.66,187.52,6.64307361]
[1761204656335,2.78,187.66,187.55,7.71126077]
[1761204656835,2.78,187.64,187.51,7.71126077]
[1761204657037,2.78,187.62,187.52,4.83018432]
[1761204657237,2.78,187.62,187.53,4.83018432]
[1761204657536,21.34,187.68,187.51,2.8]
[1761204657537,2.78,187.66,187.55,2.8]
[1761204657736,2.78,187.66,187.51,6.64307361]
[1761204657737,2.78,187.66,187.56,4.83018432]
[1761204657937,5.2870824,187.63,187.57,4.83018432]
[1761204658231,2.78,187.62,187.58,4.83018432]
[1761204658436,2.78,187.62,187.59,4.83018432]
[1761204658628,2.78,187.62,187.6,4.82526783]
[1761204658828,2.78,187.62,187.53,2.8]
[1761204659029,2.78,187.62,187.54,4.82506718]
[1761204659336,2.78,187.62,187.55,4.82506718]
[1761204659534,2.78,187.62,187.56,4.82506718]
[1761204659734,2.78,187.62,187.57,4.82506718]
[1761204659937,2.78,187.62,187.58,4.82506718]
[1761204660136,2.78,187.62,187.53,2.8]
[1761204660439,8.1470824,187.66,187.55,2.8]
[1761204660635,2.86,187.66,187.57,2.8]
[1761204660838,2.86,187.75,187.61,2.8]
[1761204661041,2.86,187.75,187.64,2.8]
[1761204661341,2.86,187.72,187.65,4.81247112]
[1761204661636,2.86,187.72,187.61,2.8]
[1761204661838,2.86,187.72,187.62,4.81331053]
[1761204662028,2.86,187.71,187.63,4.81331053]
[1761204662329,2.86,187.71,187.57,2.8]
[1761204662330,2.86,187.69,187.57,2.8]
[1761204662531,2.86,187.67,187.58,4.81216289]
[1761204662735,2.86,187.67,187.59,4.81234431]
[1761204663038,2.86,187.67,187.6,4.81234431]
[1761204663239,2.86,187.67,187.57,2.8]
[1761204663435,2.86,187.67,187.58,4.81061473]
[1761204663737,2.86,187.67,187.59,4.81061473]
[1761204663936,2.86,187.67,187.6,4.81061473]
[1761204664139,2.86,187.67,187.57,2.8]
[1761204664333,2.86,187.67,187.58,4.80840774]
[1761204664532,2.86,187.67,187.59,4.80840774]
[1761204664740,2.86,187.67,187.6,4.80840774]
[1761204665038,2.86,187.67,187.57,2.8]
[1761204665240,2.86,187.67,187.58,4.8086299]
[1761204665440,2.86,187.67,187.59,4.8086299]
[1761204665740,2.86,187.67,187.6,4.8086299]
[1761204665936,2.86,187.67,187.61,4.8086299]
[1761204666133,2.86,187.67,187.57,2.8]
[1761204666334,2.86,187.67,187.58,7.60415352]
[1761204666529,2.86,187.67,187.59,4.80415352]
[1761204666731,2.86,187.67,187.6,4.80415352]
[1761204666931,2.86,187.67,187.61,4.80415352]
[1761204667242,2.86,187.67,187.58,2.8]
[1761204667440,2.86,187.67,187.59,4.80239216]
[1761204667637,2.86,187.67,187.6,4.80239216]
[1761204667841,2.86,187.75,187.62,2.8]
[1761204668146,2.86,187.75,187.64,2.8]
[1761204668334,2.86,187.75,187.65,4.80239216]
[1761204668635,2.86,187.75,187.64,2.8]
[1761204668840,2.86,187.75,187.66,2.8]
[1761204669035,2.86,187.75,187.67,7.59513513]
[1761204669237,2.86,187.75,187.67,2.8]
[1761204669642,5.67,187.76,187.69,2.8]
[1761204669942,5.67,187.76,187.71,2.8]
[1761204670333,8.53,187.76,187.71,2.8]
[1761204670628,5.67,187.76,187.71,2.8]
[1761204671739,5.67,187.76,187.73,2.8]
[1761204672440,2.86,187.8,187.73,2.8]
[1761204673041,45.08,187.82,187.74,7.57167816]
[1761204673243,45.08,187.82,187.74,2.8]
[1761204673436,2.86,187.81,187.7,2.8]
[1761204673636,2.86,187.81,187.63,2.8]
[1761204673938,2.86,187.81,187.65,2.8]
[1761204674135,45.08,187.82,187.67,2.8]
[1761204674136,2.86,187.79,187.67,2.8]
[1761204674336,2.86,187.79,187.68,7.56846048]
[1761204674531,2.86,187.79,187.69,4.7646776]
[1761204674835,2.86,187.79,187.7,7.5646776]
[1761204675036,2.86,187.79,187.7,2.8]
[1761204676243,2.86,187.79,187.71,4.76086247]
[1761204676439,2.86,187.79,187.71,2.8]
[1761204676837,2.86,187.79,187.57,9.96461042]
[1761204676838,2.86,187.79,187.66,2.8]
[1761204677034,2.86,187.79,187.67,4.76209982]
[1761204677239,2.86,187.79,187.68,7.56209982]
[1761204677537,2.86,187.79,187.68,2.8]
[1761204677738,2.86,187.79,187.64,2.8]
[1761204677739,2.86,187.78,187.64,2.8]
[1761204677944,2.86,187.78,187.65,4.76433267]
[1761204678138,2.86,187.78,187.64,2.8]
[1761204678333,2.86,187.78,187.65,4.76528073]
[1761204678535,2.86,187.78,187.64,2.8]
[1761204678740,2.86,187.74,187.6,2.8]
[1761204678941,2.86,187.74,187.61,4.76703256]
[1761204679136,2.86,187.74,187.62,4.76703256]
[1761204679344,2.86,187.74,187.6,2.8]
[1761204679538,2.86,187.74,187.61,4.7694088]
[1761204679740,2.86,187.74,187.62,4.7694088]
[1761204679937,2.86,187.74,187.6,2.8]
[1761204680143,2.86,187.74,187.61,4.76966111]
[1761204680339,2.86,187.73,187.62,4.76966111]
[1761204680543,2.86,187.73,187.6,2.8]
[1761204680741,2.86,187.73,187.61,4.77059421]
[1761204680938,2.86,187.73,187.6,2.8]
[1761204681150,2.86,187.73,187.61,4.77148268]
[1761204681345,2.86,187.73,187.6,2.8]
[1761204681949,2.86,187.73,187.56,28.92]
[1761204682148,2.86,187.73,187.57,7.57302774]
[1761204682343,16.0,187.72,187.58,4.77302774]
[1761204682550,2.86,187.69,187.58,4.77302774]
[1761204682750,2.86,187.66,187.58,4.77302774]
[1761204683340,2.86,187.66,187.57,2.8]
[1761204684944,2.86,187.66,187.58,4.7773069]
[1761204685141,2.86,187.66,187.57,2.8]
[1761204685346,2.86,187.66,187.58,4.77835405]
[1761204685545,2.86,187.66,187.51,0.13355]
[1761204685546,3.20902169,187.7,187.6,2.67]
[1761204685852,2.83,187.69,187.6,2.67]
[1761204686648,2.83,187.68,187.53,2.67]
[1761204686848,2.83,187.68,187.55,2.67]
[1761204687155,6.03902169,187.65,187.56,4.77977613]
[1761204687353,2.83,187.65,187.57,4.77977613]